bitfinex/quotes_SOLUSD_20260114
["timestamp","ask_amount","ask_price","bid_price","bid_amount"]
[1768376066886,16.69914108,144.16,144.12,0.68453838]
[1768376067071,12.66,144.16,144.12,0.68453838]
[1768376067271,12.66,144.16,144.14,0.71250405]
[1768376068376,13.31697049,144.18,144.14,0.71250405]
[1768376068574,0.65697049,144.17,144.14,0.65250405]
[1768376068983,17.35611157,144.18,144.14,0.65250405]
[1768376069175,13.31697049,144.18,144.14,0.65250405]
[1768376069495,12.66,144.18,144.14,4.03914108]
[1768376069705,12.66,144.18,144.15,4.03914108]
[1768376070186,13.31697049,144.2,144.15,4.03914108]
[1768376070792,13.31697049,144.2,144.16,0.71250405]
[1768376071175,17.35611157,144.2,144.16,0.71250405]
[1768376073798,0.65697049,144.19,144.16,0.71250405]
[1768376074195,0.65697049,144.19,144.14,4.03914108]
[1768376074396,4.69611157,144.19,144.15,0.71250405]
[1768376074692,4.69611157,144.18,144.15,0.71250405]
[1768376075293,4.69611157,144.18,144.14,0.71769823]
[1768376075495,0.69827896,144.16,144.13,0.71769823]
[1768376076081,4.73742004,144.17,144.13,0.71769823]
[1768376076281,4.03914108,144.17,144.13,0.71769823]
[1768376077171,4.73742004,144.17,144.13,0.71769823]
[1768376077376,3.28418163,144.17,144.13,0.71769823]
[1768376078098,0.69827896,144.16,144.13,0.71769823]
[1768376080403,0.69827896,144.2,144.16,0.71769823]
[1768376080585,0.69827896,144.2,144.18,2.58590267]
[1768376081192,13.55827896,144.21,144.18,2.58590267]
[1768376081505,13.55827896,144.21,144.18,0.71769823]
[1768376082181,16.14418163,144.21,144.18,0.71769823]
[1768376082499,13.55827896,144.21,144.18,0.71769823]
[1768376083083,13.55827896,144.21,144.14,0.71769823]
[1768376083299,0.69827896,144.2,144.16,0.71769823]
[1768376085000,0.2,144.21,144.19,0.71769823]
[1768376099927,0.69827896,144.25,144.21,0.71769823]
[1768376100101,0.66827897,144.25,144.22,3.3036009]
[1768376100302,15.22590267,144.28,144.23,0.71769823]
[1768376100497,12.64,144.28,144.23,0.71769823]
[1768376100697,15.22590267,144.28,144.23,0.71769823]
[1768376100907,15.22590267,144.28,144.24,3.3036009]
[1768376100908,12.64,144.28,144.24,3.3036009]
[1768376101124,15.22590267,144.3,144.24,3.3036009]
[1768376101327,12.64,144.3,144.23,0.71769823]
[1768376101503,12.64,144.3,144.25,3.3036009]
[1768376101703,2.58590267,144.29,144.25,0.71769823]
[1768376101917,15.22590267,144.3,144.25,0.71769823]
[1768376102117,0.69827896,144.29,144.25,0.71769823]
[1768376102304,0.69827896,144.29,144.25,3.3036009]
[1768376102814,0.69827896,144.29,144.25,0.71769823]
[1768376103017,3.22787278,144.29,144.25,0.71769823]
[1768376103529,0.64197011,144.29,144.25,0.71769823]
[1768376104021,2.58590267,144.29,144.23,3.3036009]
[1768376104212,2.58590267,144.28,144.23,0.71769823]
[1768376104415,2.58590267,144.28,144.24,0.71769823]
[1768376104719,2.58590267,144.29,144.24,0.71769823]
[1768376105123,0.69827896,144.28,144.24,0.71769823]
[1768376105714,3.28418163,144.28,144.24,0.71769823]
[1768376106008,0.69827896,144.28,144.24,0.71769823]
[1768376108408,0.69827896,144.28,144.24,3.3036009]
[1768376109932,0.69827896,144.28,144.25,3.26644323]
[1768376110946,0.69827896,144.28,144.25,0.68054056]
[1768376111240,0.69827896,144.28,144.25,3.26644323]
[1768376111620,0.69827896,144.28,144.25,0.68054056]
[1768376112317,0.69827896,144.28,144.23,2.58590267]
[1768376112318,0.69827896,144.28,144.23,3.26644323]
[1768376112517,0.69827896,144.28,144.24,0.68054056]
[1768376112818,0.67359774,144.27,144.24,0.68054056]
[1768376113022,0.67359774,144.27,144.23,3.26644323]
[1768376114938,0.67359774,144.27,144.24,0.68054056]
[1768376117838,0.67359774,144.27,144.2,0.68054056]
[1768376117839,0.67359774,144.26,144.2,0.68054056]
[1768376118036,0.67359774,144.26,144.22,0.68054056]
[1768376119232,0.67359774,144.26,144.22,3.26644323]
[1768376122338,0.67359774,144.26,144.23,2.58590267]
[1768376122540,6.93068348,144.29,144.24,3.29915539]
[1768376122541,0.65654654,144.28,144.24,3.29915539]
[1768376122744,0.65654654,144.29,144.26,3.29915539]
[1768376123044,2.78590267,144.32,144.27,2.58590267]
[1768376123344,2.78590267,144.32,144.24,12.64]
[1768376123345,0.2,144.32,144.28,3.29915539]
[1768376123539,0.2,144.32,144.28,0.71325272]
[1768376123847,0.2,144.32,144.28,3.29915539]
[1768376124250,0.2,144.32,144.28,2.58590267]
[1768376125338,0.65654654,144.31,144.28,2.58590267]
[1768376127851,0.65654654,144.31,144.28,3.29915539]
[1768376130930,0.65654654,144.31,144.28,0.71325272]
[1768376131162,0.65654654,144.31,144.28,3.29915539]
[1768376132139,0.65654654,144.31,144.28,0.71325272]
[1768376133153,0.2,144.32,144.29,0.71325272]
[1768376133654,0.65654654,144.31,144.28,2.58590267]
[1768376133834,0.65654654,144.31,144.28,0.71325272]
[1768376134029,0.65654654,144.31,144.27,0.71325272]
[1768376134236,2.78590267,144.32,144.26,0.71325272]
[1768376134237,0.65654654,144.29,144.26,0.71325272]
[1768376135153,0.65654654,144.29,144.25,0.69559847]
[1768376136032,0.65654654,144.29,144.25,3.28150114]
[1768376136232,0.65654654,144.29,144.26,0.69559847]
[1768376137228,0.72443499,144.31,144.27,0.69559847]
[1768376137531,3.31033766,144.31,144.27,0.69559847]
[1768376138658,0.72443499,144.3,144.27,0.69559847]
[1768376139955,0.72443499,144.3,144.26,0.69559847]
[1768376140860,4.75692628,144.3,144.26,0.69559847]
[1768376142159,0.72443499,144.3,144.26,0.69559847]
[1768376142356,4.75692628,144.3,144.26,0.69559847]
[1768376143659,0.72443499,144.3,144.26,0.69559847]
[1768376144360,6.6801107,144.21,144.11,0.69559847]
[1768376144566,4.03249129,144.15,144.11,0.69559847]
[1768376144868,4.03249129,144.14,144.09,0.79559847]
[1768376145064,4.03249129,144.15,144.11,0.69559847]
[1768376145376,8.55636938,144.14,144.11,0.69559847]
[1768376145676,4.52387809,144.13,144.11,0.69559847]
[1768376145842,4.03249129,144.17,144.12,0.69559847]
[1768376146040,8.55706393,144.16,144.12,0.69559847]
[1768376146243,4.51840783,144.15,144.12,0.69559847]
[1768376146444,4.03249129,144.16,144.12,0.69559847]
[1768376146751,4.51779523,144.15,144.12,0.69559847]
[1768376146950,4.03249129,144.16,144.12,0.69559847]
[1768376147374,4.03249129,144.17,144.13,0.69559847]
[1768376147549,4.51288742,144.16,144.13,0.69559847]
[1768376147749,4.03249129,144.18,144.14,13.33559847]
[1768376148156,4.51302316,144.17,144.14,13.33559847]
[1768376148365,4.03249129,144.17,144.14,13.33559847]
[1768376149671,13.61454914,144.21,144.14,13.33559847]
[1768376149672,4.03249129,144.18,144.14,13.33559847]
[1768376149860,4.65414396,144.17,144.14,13.33559847]
[1768376150062,4.03249129,144.18,144.14,13.33559847]
[1768376150248,4.65145297,144.17,144.14,13.33559847]
[1768376150448,4.03249129,144.18,144.14,13.33559847]
[1768376150648,4.65146334,144.17,144.14,13.33559847]
[1768376150949,4.03249129,144.18,144.14,13.33559847]
[1768376151248,4.65146897,144.17,144.14,13.33559847]
[1768376151450,4.03249129,144.18,144.14,13.33559847]
[1768376151656,4.64891594,144.17,144.15,0.69559847]
[1768376151978,6.93350671,144.23,144.15,0.69559847]
[1768376151979,4.03249129,144.18,144.15,0.69559847]
[1768376152464,104.2,144.22,144.15,0.69559847]
[1768376152770,4.03249129,144.19,144.15,0.69559847]
[1768376153074,4.64780279,144.18,144.15,0.69559847]
[1768376153272,4.03249129,144.19,144.15,0.69559847]
[1768376153776,4.03249129,144.18,144.15,0.69559847]
[1768376155874,4.03249129,144.19,144.15,0.69559847]
[1768376161561,0.69352937,144.21,144.15,0.69559847]
[1768376161763,0.69352937,144.22,144.18,0.69559847]
[1768376161964,7.37364007,144.23,144.2,0.69559847]
[1768376162166,7.37364007,144.23,144.21,12.64]
[1768376162167,0.69352937,144.23,144.21,12.64]
[1768376162363,0.69352937,144.23,144.21,9.3973]
[1768376162677,0.69352937,144.23,144.22,12.64]
[1768376162978,0.69352937,144.24,144.22,12.61368268]
[1768376163179,0.69352937,144.24,144.22,12.58000001]
[1768376163382,4.72602066,144.24,144.22,12.58000001]
[1768376163568,4.72602066,144.24,144.22,12.64]
[1768376164078,0.69352937,144.24,144.21,12.64]
[1768376164483,0.69352937,144.25,144.21,17.36808976]
[1768376165873,11.87880688,144.27,144.21,17.36808976]
[1768376165874,0.69352937,144.26,144.21,17.36808976]
[1768376166183,4.72602066,144.26,144.21,17.36808976]
[1768376166760,0.69352937,144.26,144.21,17.36808976]
[1768376166964,0.69352937,144.26,144.24,0.65265034]
[1768376167165,4.94721205,144.27,144.24,4.68514163]
[1768376167166,5.64074142,144.27,144.24,4.68514163]
[1768376168168,4.94721205,144.27,144.24,4.68514163]
[1768376168981,4.94721205,144.27,144.24,0.65265034]
[1768376169589,4.94721205,144.27,144.24,0.62633352]
[1768376169779,4.94721205,144.27,144.24,0.59265035]
[1768376170085,4.94721205,144.27,144.24,0.53265035]
[1768376170387,4.03249129,144.25,144.11,34.69547124]
[1768376170580,4.94721205,144.27,144.22,4.03249129]
[1768376170777,33.63,144.32,144.23,6.93292906]
[1768376170778,0.67196431,144.3,144.23,6.93292906]
[1768376170976,4.617435,144.29,144.22,6.93369723]
[1768376171183,0.67196431,144.3,144.25,4.03249129]
[1768376171493,4.61812594,144.29,144.25,4.03249129]
[1768376171661,4.7044556,144.3,144.25,4.03249129]
[1768376171867,4.61812594,144.29,144.25,4.03249129]
[1768376172067,4.7044556,144.3,144.25,4.68514163]
[1768376172267,4.61834816,144.29,144.25,4.68514163]
[1768376172565,4.7044556,144.3,144.25,4.68514163]
[1768376172766,4.6187733,144.29,144.25,4.68514163]
[1768376172965,4.7044556,144.3,144.25,4.68514163]
[1768376173173,4.61877816,144.29,144.25,4.68514163]
[1768376173374,4.7044556,144.3,144.25,4.68514163]
[1768376173568,4.61942357,144.29,144.25,4.68514163]
[1768376173782,0.67196431,144.3,144.25,4.68514163]
[1768376174002,4.61942357,144.29,144.25,4.68514163]
[1768376174162,0.67196431,144.3,144.25,0.65265034]
[1768376174364,4.62009068,144.29,144.25,4.68514163]
[1768376174671,0.67196431,144.3,144.25,4.68514163]
[1768376174877,4.6197448,144.29,144.25,17.32514163]
[1768376175088,0.67196431,144.3,144.25,17.32514163]
[1768376175395,4.62008582,144.29,144.25,17.32514163]
[1768376175691,4.7044556,144.3,144.25,17.32514163]
[1768376176004,4.62042648,144.29,144.26,0.65265034]
[1768376176168,0.67196431,144.3,144.26,0.65265034]
[1768376176494,4.62113064,144.29,144.26,0.65265034]
[1768376176693,0.67196431,144.3,144.26,0.65265034]
[1768376176993,4.62113064,144.29,144.26,0.65265034]
[1768376177183,0.67196431,144.3,144.26,0.65265034]
[1768376177389,4.62183733,144.29,144.26,0.65265034]
[1768376177575,0.67196431,144.3,144.26,4.68514163]
[1768376177778,4.62183733,144.29,144.26,4.68514163]
[1768376178074,0.67196431,144.3,144.26,4.68514163]
[1768376178269,4.6223035,144.29,144.26,4.68514163]
[1768376178482,0.67196431,144.3,144.26,0.65265034]
[1768376178682,4.62257158,144.29,144.26,0.65265034]
[1768376178882,0.67196431,144.3,144.26,0.65265034]
[1768376179083,4.62291288,144.29,144.26,0.65265034]
[1768376179284,0.67196431,144.3,144.26,0.65265034]
[1768376179498,4.62317898,144.29,144.26,0.65265034]
[1768376179805,0.67196431,144.3,144.26,0.65265034]
[1768376180001,4.62308783,144.29,144.26,0.65265034]
[1768376180187,0.67196431,144.3,144.26,0.65265034]
[1768376180389,4.62393794,144.29,144.26,0.65265034]
[1768376180590,0.67196431,144.3,144.26,0.65265034]
[1768376180886,4.62393794,144.29,144.26,0.65265034]
[1768376181197,0.67196431,144.3,144.26,0.65265034]
[1768376181398,4.62424924,144.29,144.26,0.65265034]
[1768376181601,0.67196431,144.3,144.26,0.65265034]
[1768376181769,4.62389273,144.29,144.26,0.65265034]
[1768376181975,0.67196431,144.3,144.26,0.65265034]
[1768376182184,4.62389515,144.29,144.26,0.65265034]
[1768376182384,0.67196431,144.3,144.26,0.65265034]
[1768376182594,4.62421882,144.29,144.26,0.65265034]
[1768376182782,0.67196431,144.3,144.26,0.65265034]
[1768376182982,4.62421882,144.29,144.26,0.65265034]
[1768376183296,0.67196431,144.3,144.26,0.65265034]
[1768376183488,4.6247082,144.29,144.26,0.65265034]
[1768376183789,0.67196431,144.3,144.26,0.65265034]
[1768376183986,4.62504964,144.29,144.26,0.59265034]
[1768376184188,0.67196431,144.3,144.26,0.59265034]
[1768376184500,4.62554821,144.29,144.26,0.59265034]
[1768376184675,0.67196431,144.3,144.26,0.59265034]
[1768376184876,4.6243501,144.29,144.26,0.59265034]
[1768376185078,0.67196431,144.3,144.26,0.59265034]
[1768376185295,4.62381291,144.29,144.26,0.59265034]
[1768376185491,0.67196431,144.3,144.26,0.59265034]
[1768376185699,4.62384928,144.29,144.26,0.59265034]
[1768376185892,0.67196431,144.3,144.26,0.59265034]
[1768376186097,4.62384163,144.29,144.26,0.59265034]
[1768376186303,0.67196431,144.3,144.26,0.59265034]
[1768376186486,4.62425281,144.29,144.26,0.59265034]
[1768376186686,0.67196431,144.3,144.26,0.59265034]
[1768376186987,4.62426067,144.29,144.26,0.59265034]
[1768376187304,0.67196431,144.3,144.26,0.59265034]
[1768376187498,4.62465285,144.29,144.26,0.59265034]
[1768376187699,0.67196431,144.3,144.26,0.59265034]
[1768376187998,4.62464275,144.29,144.26,0.59265034]
[1768376188196,0.67196431,144.3,144.26,0.59265034]
[1768376188398,4.62505333,144.29,144.26,0.59265034]
[1768376188598,0.67196431,144.3,144.26,0.59265034]
[1768376188799,4.62505091,144.29,144.26,0.59265034]
[1768376189012,0.67196431,144.3,144.26,0.59265034]
[1768376189182,4.62504585,144.29,144.26,0.59265034]
[1768376189383,0.67196431,144.3,144.26,0.59265034]
[1768376189596,4.62547416,144.29,144.26,0.59265034]
[1768376189825,0.67196431,144.3,144.26,0.59265034]
[1768376189995,4.62443265,144.29,144.26,0.59265034]
[1768376190186,0.67196431,144.3,144.26,0.59265034]
[1768376190389,4.62599387,144.29,144.26,0.59265034]
[1768376190686,0.67196431,144.3,144.26,0.59265034]
[1768376190899,4.62598275,144.29,144.26,0.59265034]
[1768376191107,0.67196431,144.3,144.26,0.59265034]
[1768376191301,4.62677599,144.29,144.26,0.59265034]
[1768376191508,0.67196431,144.3,144.26,0.56634324]
[1768376191702,4.62677356,144.29,144.26,0.56634324]
[1768376191900,0.67196431,144.3,144.26,0.56634324]
[1768376192099,4.62679134,144.29,144.26,0.56634324]
[1768376192311,4.62679134,144.28,144.26,0.56634324]
[1768376192609,0.67196431,144.3,144.26,0.56634324]
[1768376192910,4.62796042,144.29,144.26,0.56634324]
[1768376193107,5.29320082,144.28,144.2,66.83249129]
[1768376193307,10.96298729,144.29,144.24,4.03249129]
[1768376193493,4.6289253,144.28,144.26,0.70200658]
[1768376193693,0.6652404,144.29,144.26,0.70200658]
[1768376193893,4.62894437,144.28,144.26,0.70200658]
[1768376194212,0.6652404,144.29,144.26,0.70200658]
[1768376194413,4.62971866,144.28,144.26,0.70200658]
[1768376194608,0.6652404,144.29,144.26,0.70200658]
[1768376194815,4.62970331,144.28,144.27,0.70200658]
[1768376199904,4.62970331,144.28,144.27,0.64200658]
[1768376201015,4.62970331,144.28,144.25,12.64]
[1768376201217,4.62970331,144.27,144.25,12.64]
[1768376201431,0.39065009,144.29,144.25,12.64]
[1768376201617,4.64107905,144.28,144.25,12.64]
[1768376201797,4.64107905,144.27,144.25,12.64]
[1768376202130,2.97215447,144.29,144.26,0.71249097]
[1768376202306,4.64391549,144.28,144.27,12.64]
[1768376203017,4.64391549,144.28,144.27,9.17644262]
[1768376203336,0.39336854,144.27,144.22,0.71249097]
[1768376203533,7.88522311,144.26,144.23,13.35249097]
[1768376203703,4.64391549,144.25,144.24,12.64]
[1768376206207,9.29176521,144.25,144.24,12.64]
[1768376206398,0.65716554,144.24,144.21,0.71249097]
[1768376206600,7.14608682,144.23,144.22,12.64]
[1768376207328,4.56458244,144.23,144.22,12.64]
[1768376209616,4.56458244,144.23,144.21,0.71249097]
[1768376209823,3.23866992,144.24,144.22,12.64]
[1768376210019,4.55657953,144.23,144.22,12.64]
[1768376210736,7.53672812,144.23,144.22,12.64]
[1768376213614,12.1850752,144.23,144.21,12.64]
[1768376213826,4.55657953,144.22,144.21,12.64]
[1768376214029,4.52657954,144.22,144.21,12.64]
[1768376215717,4.52657954,144.22,144.21,13.35249097]
[1768376217439,4.52657954,144.22,144.21,12.64]
[1768376217640,4.52657954,144.22,144.21,13.35249097]
[1768376219834,4.52657954,144.22,144.21,12.64]
[1768376223041,0.29664776,144.23,144.21,12.64]
[1768376223744,0.29864421,144.24,144.21,13.35249097]
[1768376223941,0.29864421,144.25,144.22,0.71249097]
[1768376224243,104.8941993,144.26,144.22,2.58150438]
[1768376224449,4.6404486,144.25,144.22,2.58150438]
[1768376224745,0.32938694,144.25,144.21,15.22150438]
[1768376225249,0.32938694,144.25,144.21,12.64]
[1768376225634,0.32938694,144.25,144.21,15.22150438]
[1768376225947,4.52883075,144.24,144.21,15.22150438]
[1768376226150,4.49883076,144.23,144.21,15.87869413]
[1768376226342,0.32938694,144.25,144.22,0.65718975]
[1768376226843,2.91089132,144.25,144.21,13.29718975]
[1768376227045,4.63939738,144.24,144.21,13.29718975]
[1768376227238,2.91089132,144.25,144.21,13.29718975]
[1768376227444,4.63962773,144.24,144.21,13.29718975]
[1768376227624,2.91089132,144.25,144.21,13.29718975]
[1768376227952,2.58150438,144.23,144.14,0.65718975]
[1768376228252,2.58150438,144.23,144.09,34.79869902]
[1768376228253,2.58150438,144.18,144.16,0.65718975]
[1768376228422,2.95493097,144.19,144.16,0.65718975]
[1768376230452,2.95493097,144.19,144.15,13.29718975]
[1768376230654,0.64695193,144.18,144.15,13.29718975]
[1768376232145,2.58150438,144.19,144.16,0.65718975]
[1768376232330,3.23691439,144.2,144.16,0.65718975]
[1768376233032,0.65541001,144.2,144.16,0.65718975]
[1768376235846,3.23691439,144.21,144.16,0.65718975]
[1768376236644,0.36778834,144.2,144.16,0.65718975]
[1768376237955,3.23691439,144.21,144.16,0.65718975]
[1768376238256,4.51463569,144.2,144.16,0.65718975]
[1768376238450,4.51463569,144.19,144.16,0.65718975]
[1768376238651,4.51463569,144.18,144.16,0.65718975]
[1768376238850,2.94929272,144.2,144.16,0.65718975]
[1768376239052,4.51463785,144.19,144.16,0.65718975]
[1768376239252,4.51463785,144.18,144.16,0.65718975]
[1768376239444,2.94929272,144.2,144.16,0.65718975]
[1768376239640,4.51438314,144.19,144.16,0.65718975]
[1768376239847,4.51438314,144.18,144.16,0.65718975]
[1768376240033,2.58150438,144.2,144.16,0.65718975]
[1768376240233,4.57109209,144.19,144.16,0.65718975]
[1768376240554,4.57109209,144.18,144.16,0.65718975]
[1768376240756,2.91303517,144.2,144.16,0.65718975]
[1768376240959,4.57155782,144.19,144.16,0.65718975]
[1768376241138,4.57155782,144.18,144.16,0.65718975]
[1768376241334,2.91303517,144.2,144.16,0.65718975]
[1768376241575,4.5719216,144.19,144.16,0.65718975]
[1768376241758,4.5719216,144.18,144.16,0.65718975]
[1768376241940,2.91303517,144.2,144.16,0.65718975]
[1768376242144,4.5719216,144.19,144.16,0.65718975]
[1768376242455,4.57242644,144.18,144.16,0.65718975]
[1768376242663,2.91303517,144.2,144.16,0.65718975]
[1768376242870,4.57242915,144.19,144.16,0.65718975]
[1768376243165,4.57242644,144.18,144.16,0.65718975]
[1768376243340,0.33153079,144.2,144.16,0.65718975]
[1768376243541,4.573092,144.19,144.16,0.65718975]
[1768376243847,4.573092,144.18,144.16,0.65718975]
[1768376244047,0.33153079,144.2,144.16,0.65718975]
[1768376244344,4.57315825,144.19,144.16,0.65718975]
[1768376244641,4.57315825,144.18,144.16,0.65718975]
[1768376244841,0.33153079,144.2,144.16,0.65718975]
[1768376245049,4.57398696,144.19,144.16,0.65718975]
[1768376245248,4.57398696,144.18,144.16,0.65718975]
[1768376245453,0.33153079,144.2,144.16,0.65718975]
[1768376245658,4.57497384,144.19,144.16,0.65718975]
[1768376245965,4.57497384,144.18,144.16,0.65718975]
[1768376246263,0.33153079,144.2,144.16,0.65718975]
[1768376246444,4.57623979,144.19,144.16,0.65718975]
[1768376246642,4.57623979,144.18,144.16,0.65718975]
[1768376246944,2.91303517,144.2,144.16,0.65718975]
[1768376247144,4.57624466,144.19,144.16,0.65718975]
[1768376247348,4.57624466,144.18,144.16,0.65718975]
[1768376247655,4.57624466,144.17,144.16,0.65718975]
[1768376248240,4.57624466,144.19,144.16,0.65718975]
[1768376248455,4.57624466,144.18,144.16,0.65718975]
[1768376248663,4.57624466,144.17,144.16,0.65718975]
[1768376248851,4.57624466,144.19,144.16,0.65718975]
[1768376249051,4.57624466,144.18,144.16,0.65718975]
[1768376249264,4.57624466,144.17,144.16,0.65718975]
[1768376249564,4.57624466,144.19,144.16,0.65718975]
[1768376249768,4.57624466,144.18,144.16,0.65718975]
[1768376249959,4.57624466,144.17,144.16,0.65718975]
[1768376250140,4.57624466,144.19,144.16,0.65718975]
[1768376250347,4.57624466,144.18,144.16,0.65718975]
[1768376250665,4.57624466,144.17,144.16,0.65718975]
[1768376250850,4.57624466,144.19,144.16,0.65718975]
[1768376251050,4.57624466,144.18,144.16,0.65718975]
[1768376251246,4.57624466,144.17,144.16,0.65718975]
[1768376251651,4.58137302,144.19,144.16,0.65718975]
[1768376251865,4.58137302,144.18,144.16,0.65718975]
[1768376252170,4.58137302,144.17,144.16,0.65718975]
[1768376252465,4.58137302,144.19,144.16,0.65718975]
[1768376252671,4.58137302,144.18,144.16,0.65718975]
[1768376253043,0.68842877,144.19,144.16,0.65718975]
[1768376253373,4.5824023,144.18,144.16,0.65718975]
[1768376253674,4.5824023,144.17,144.16,0.65718975]
[1768376253964,4.58290752,144.17,144.16,0.65718975]
[1768376254466,4.58361785,144.18,144.16,0.65718975]
[1768376254675,4.58361785,144.17,144.16,0.65718975]
[1768376254870,4.58361785,144.17,144.15,13.30909517]
[1768376255054,4.58361785,144.16,144.15,13.30909517]
[1768376260474,4.58630447,144.17,144.15,13.30909517]
[1768376260676,4.58630447,144.16,144.15,13.30909517]
[1768376262268,4.58630447,144.16,144.15,17.34874519]
[1768376262875,0.33509977,144.18,144.15,17.34874519]
[1768376263078,0.33509977,144.18,144.16,4.03965002]
[1768376263378,0.67145495,144.22,144.18,0.70943677]
[1768376263578,0.67145495,144.23,144.2,4.74908679]
[1768376264159,0.66825944,144.2,144.16,0.70943677]
[1768376264374,0.67145495,144.21,144.18,0.70943677]
[1768376264579,4.03965002,144.25,144.2,4.03965002]
[1768376264759,4.6436188,144.24,144.21,12.64]
[1768376265073,5.31507375,144.23,144.21,12.64]
[1768376265277,0.67145495,144.23,144.21,12.64]
[1768376267153,0.35190385,144.22,144.21,12.64]
[1768376267870,10.97136495,144.27,144.21,13.34943677]
[1768376267871,0.35190385,144.25,144.21,13.34943677]
[1768376268075,4.64329718,144.24,144.21,13.34943677]
[1768376268371,0.66825944,144.24,144.21,13.34943677]
[1768376268885,4.70790946,144.24,144.21,13.34943677]
[1768376269573,4.03965002,144.22,144.21,11.71308661]
[1768376272289,6.93229201,144.26,144.21,11.71308661]
[1768376272592,4.03965002,144.23,144.21,11.71308661]
[1768376272888,6.93229201,144.26,144.21,11.71308661]
[1768376273087,4.03965002,144.23,144.21,11.71308661]
[1768376273468,4.03965002,144.24,144.21,11.71308661]
[1768376273669,4.64332252,144.23,144.21,11.71308661]
[1768376273863,4.03965002,144.24,144.21,11.71308661]
[1768376274066,4.64331217,144.23,144.21,11.71308661]
[1768376274291,4.03965002,144.24,144.21,11.71308661]
[1768376274478,8.68258281,144.23,144.21,11.71308661]
[1768376274785,4.03965002,144.23,144.21,11.71308661]
[1768376274998,4.39605698,144.22,144.21,11.71308661]
[1768376275283,4.39574921,144.22,144.21,11.71308661]
[1768376280489,9.03550138,144.22,144.21,11.71308661]
[1768376280691,13.0751514,144.22,144.17,0.70943677]
[1768376280897,4.03965002,144.2,144.17,13.34943677]
[1768376281083,4.39574921,144.19,144.17,13.34943677]
[1768376281288,4.39574921,144.18,144.17,13.34943677]
[1768376283675,3.67074921,144.18,144.17,12.64]
[1768376283998,6.9335161,144.23,144.17,12.64]
[1768376283999,4.19165961,144.21,144.17,12.64]
[1768376284193,0.6662605,144.2,144.17,13.34943677]
[1768376284371,5.30612156,144.2,144.17,13.34943677]
[1768376284570,4.70591052,144.2,144.17,13.34943677]
[1768376285074,4.03965002,144.19,144.17,12.64]
[1768376285689,4.19680212,144.19,144.17,12.64]
[1768376286619,0.1571521,144.19,144.17,12.64]
[1768376287110,4.72127878,144.2,144.17,12.64]
[1768376287482,4.03965002,144.19,144.17,12.64]
[1768376288596,4.18158754,144.19,144.17,12.64]
[1768376290908,0.14193752,144.19,144.17,12.64]
[1768376291104,4.18158754,144.19,144.17,12.64]
[1768376291284,0.14193752,144.19,144.17,12.64]
[1768376291483,4.18158754,144.19,144.17,12.64]
[1768376291710,4.03965002,144.19,144.17,13.31617363]
[1768376291888,4.18158754,144.2,144.17,13.31617363]
[1768376293607,4.72127878,144.2,144.17,12.64]
[1768376293907,4.72127878,144.2,144.17,13.31617363]
[1768376294282,0.68162876,144.23,144.18,0.67617363]
[1768376294604,0.14193752,144.21,144.18,0.67617363]
[1768376294810,4.63930517,144.2,144.18,0.67617363]
[1768376295103,0.14193752,144.21,144.18,0.67617363]
[1768376295307,4.63846148,144.2,144.18,0.67617363]
[1768376295509,4.18158754,144.21,144.18,0.67617363]
[1768376295806,9.01157098,144.2,144.18,0.67617363]
[1768376295978,4.37300977,144.19,144.18,0.67617363]
[1768376297108,4.37300977,144.19,144.18,0.61617363]
[1768376301685,4.37300977,144.19,144.18,0.55617363]
[1768376303287,4.37300977,144.19,144.18,0.49617363]
[1768376308094,0.70977297,144.23,144.18,10.97542474]
[1768376308410,5.35433512,144.22,144.18,10.97542474]
[1768376308610,4.64456215,144.21,144.18,11.01174203]
[1768376308807,4.64456215,144.21,144.19,0.03631729]
[1768376309121,4.64456215,144.21,144.2,12.60368271]
[1768376309492,5.35433512,144.21,144.2,12.60368271]
[1768376310183,5.35433512,144.21,144.2,12.54368271]
[1768376315611,4.64456215,144.21,144.2,12.54368271]
[1768376315914,4.64456215,144.22,144.2,12.54368271]
[1768376316102,4.64456215,144.21,144.2,12.54368271]
[1768376316504,4.03965002,144.21,144.19,12.67631729]
[1768376316820,4.74462938,144.22,144.19,12.61631729]
[1768376317195,4.64822581,144.21,144.19,12.61631729]
[1768376317395,4.74462938,144.22,144.19,12.61631729]
[1768376317603,4.64856697,144.21,144.19,12.61631729]
[1768376317810,4.74462938,144.22,144.19,12.61631729]
[1768376318013,4.64856697,144.21,144.19,12.61631729]
[1768376318211,4.74462938,144.22,144.19,12.61631729]
[1768376318422,4.64881654,144.21,144.19,12.61631729]
[1768376318719,0.70497936,144.21,144.19,12.61631729]
[1768376320124,4.2550488,144.2,144.19,12.61631729]
[1768376321597,0.70497936,144.19,144.18,12.64]
[1768376321905,2.58423679,144.21,144.18,12.64]
[1768376322319,2.58423679,144.21,144.16,20.2814399]
[1768376322523,2.58423679,144.21,144.17,6.93623295]
[1768376322818,4.64950966,144.2,144.17,7.64121231]
[1768376322998,2.58423679,144.21,144.17,7.64121231]
[1768376323200,4.64986158,144.2,144.17,0.70497936]